[Event "Serbian League 2024"]
[Site "Bajina Basta"]
[Date "2024.10.03"]
[Round "7.1"]
[White "Predke, Alexandr"]
[Black "Indjic, Aleksandar"]
[Result "1/2-1/2"]
[ECO "B51"]
[WhiteElo "2671"]
[BlackElo "2611"]
[Annotator "TA"]
[PlyCount "171"]
[EventDate "2024.09.26"]
[EventType "team-tourn"]
[EventCountry "SRB"]
[SourceTitle "playchess.com"]
[Source "ChessBase"]
[SourceQuality "1"]
[TimeControl "40/5400+30:1800+30"]

{[%evp 10,171,10,0,0,0,0,0,6,0,0,0,0,0,-4,-13,0,0,0,0,0,-10,0,0,0,-13,-18,-12,0,0,10,0,0,0,36,25,29,12,28,1,6,0,26,16,17,0,29,24,26,18,29,35,39,36,149,141,137,35,86,76,69,71,114,114,100,64,72,45,748,697,675,0,91,0,466,156,188,209,222,221,387,341,627,200,200,200,482,485,514,0,295,0,552,553,595,607,1050,158,170,201,169,169,349,331,387,366,284,168,142,139,147,170,165,101,83,58,201,177,248,222,246,231,170,104,159,0,117,131,135,146,227,56,96,98,95,110,120,11,11,11,12,0,0,0,0,0,0,0,0,0,0,0,0,0,0,0,0,0,0,0,0,0,0,0]} 1. e4 {[%emt 0:00:08]} c5 {[%emt 0:02:19]} 2. Nf3 {[%emt 0:01:20]} d6 {[%emt 0:00:15]} 3. Bb5+ {[%emt 0:00:09]} Nd7 {[%emt 0:00:31]} 4. O-O {[%emt 0:00:08]} a6 {[%emt 0:00:48]} 5. Bxd7+ {[%emt 0:00:39]} Bxd7 {[%emt 0:00:16]} 6. c3 {[%emt 0:00:11]} Nf6 {[%emt 0:04:18]} 7. Re1 {[%emt 0:00:08]} e6 {[%emt 0:03:21]} 8. d4 {[%emt 0:00:10]} Be7 {[%emt 0:08:38]} 9. e5 {[%emt 0:00:07]} dxe5 {[%emt 0:00:02]} 10. dxe5 {[%emt 0:00:07]} Nd5 {[%emt 0:00:03]} 11. c4 {[%emt 0:00:10]} Nb6 {[%emt 0:00:03]} 12. Qe2 {[%emt 0:00:34]} Bc6 {[%emt 0:00:21]} 13. Nc3 {[%emt 0:09:28]} O-O {[%emt 0:03:17]} 14. Ne4 {[%emt 0:01:12]} Qc7 {[%emt 0:00:30]} 15. Bf4 {[%emt 0:17:17]} Rfd8 {[%emt 0:05:19]} 16. h4 {[%emt 0:15:50][%cal Bh2h4,Bh4h5,Bh5h6][%mdl 32]} Nd7 {[%emt 0:01:58]} 17. Qe3 {[%emt 0:03:22]} Bxe4 {[%emt 0:03:13]} 18. Qxe4 {[%emt 0:00:04]} b5 {[%emt 0:00:06]} 19. b3 {[%emt 0:05:06]} Rab8 {[%emt 0:02:55]} 20. h5 {[%emt 0:04:00]} Qb7 {[%emt 0:00:29]} 21. h6 {[%emt 0:03:28]} bxc4 {[%emt 0:04:37]} 22. Qxc4 {[%emt 0:01:19]} Nb6 {[%emt 0:00:27]} 23. Qe2 {[%emt 0:03:28]} Nd5 {[%emt 0:00:11]} 24. Bd2 {[%emt 0:00:10]} g6 {[%emt 0:00:13]} 25. Bg5 {[%emt 0:05:05]} Rdc8 {[%emt 0:01:52]} 26. Bxe7 {[%emt 0:00:36]} Qxe7 {[%emt 0:00:05]} 27. Rac1 {[%emt 0:02:19][%cal Of3h2]} Qf8 {[%emt 0:01:13]} 28. Qd2 {[%emt 0:00:22]} Rd8 {[%emt 0:00:06]} 29. Qg5 {[%emt 0:01:12]} Nb4 {[%emt 0:00:05]} 30. Re2 $36 {[%emt 0:01:39][%mdl 2048] White has the initiative.} Rd5 {[%emt 0:00:11]} 31. Rd2 {[%emt 0:11:02]} f5 {[%emt 0:06:40]} (31... Nd3 $14) 32. Rxd5 $16 {[%emt 0:01:41]} Nxd5 {[%emt 0:00:07]} 33. Nd2 {[%emt 0:01:21]} (33. Qd2 $16) 33... Nb4 $1 $14 {[%emt 0:01:26]} 34. Nc4 {[%emt 0:01:13]} Rd8 {[%emt 0:01:07][%cal Od8d3] Prevents Rd1} 35. a3 $1 {[%emt 0:07:33]} Nd3 {[%emt 0:01:54]} 36. Rd1 {[%emt 0:02:51][%cal Oc4b2]} Rd5 {[%emt 0:01:03]} 37. Rd2 {[%emt 0:02:57]} f4 {[%emt 0:03:31]} 38. f3 {[%emt 0:00:21]} Qf5 $2 {[%emt 0:00:46][%mdl 8192]} (38... Nxe5 $14 39. Rxd5 Nf7) 39. Qe7 $18 {[%emt 0:00:30]} Qf7 {[%emt 0:00:17]} 40. Qg5 {[%emt 0:00:38]} (40. Qd6 $1 $18 {[%cal Od2d3]} Rxd6 41. exd6) 40... Qf5 $16 {[%emt 0:01:27]} 41. Qe7 {[%emt 0:14:57][%mdl 8192]} (41. Qxf5 $1 $16 gxf5 42. Kf1) 41... Qf7 $18 {[%emt 0:00:11]} 42. Qh4 {[%emt 0:00:05]} (42. Qd6 $18 {[%cal Od2d3] is the precise move to win.} Rxd6 43. exd6) 42... Kf8 $16 {[%emt 0:10:20][%cal Of7e7]} 43. Nb6 $1 {[%emt 0:06:33]} Rd4 {[%emt 0:00:32][%cal Of7f5]} 44. Nc8 $1 {[%emt 0:03:39]} Rd5 $2 {[%emt 0:01:33]} (44... Qb7 45. Qf6+ Qf7) 45. Kf1 {[%emt 0:03:33] Threatens to win with Rd1.} a5 $2 {[%emt 0:03:15]} (45... Rd4 46. Rd1 Qc7 47. Qf6+ Qf7 48. Qxf7+ (48. Qh8+ Qg8 $18) 48... Kxf7 49. Nd6+ Ke7) 46. a4 $2 {[%emt 0:02:27]} (46. Rd1) 46... Rd4 $18 {[%emt 0:04:23]} 47. Rd1 {[%emt 0:00:08] Strongly threatening Ke2.} Kg8 $2 {[%emt 0:02:39]} (47... Qc7) 48. Ne7+ {[%emt 0:01:19]} Kf8 {[%emt 0:00:43]} 49. Nc8 {[%emt 0:00:31] Ke2 is the strong threat.} Kg8 $1 {[%emt 0:00:35]} 50. Ne7+ $2 {[%emt 0:00:04]} (50. Qg5 Nb4 51. Rxd4 cxd4 52. Qd8+ Qf8 53. Qd7 (53. Qxa5 Qxc8 54. Qxb4 Qc1+ 55. Qe1 Qc2 $11) 53... Qxh6 54. Qxe6+ (54. Qxd4 Qh1+ 55. Kf2 Qh4+ 56. Kg1 Qe1+ 57. Kh2 Qg3+ 58. Kg1 Qe1+ 59. Kh2 Nd5 $11) 54... Kh8 55. Qe8+ Kg7 56. Qe7+ Kg8 57. Nd6 Qh1+ 58. Kf2 Nd3+ 59. Ke2 Nc1+ 60. Kd2) 50... Kf8 {[%emt 0:00:04]} 51. Nc6 {[%emt 0:00:08][%csl LRa5,LRd4]} Rd5 {[%emt 0:01:31]} 52. Ke2 {[%emt 0:00:22]} Ke8 {[%emt 0:02:17]} 53. Qf6 $2 {[%emt 0:02:42]} (53. Nxa5 g5 54. Qh2 (54. Qxg5 $2 Rxe5+ $19) (54. Qg4 $2 Qg6 $19) 54... Nxe5 $11) (53. Rxd3 $18 {[%cal Oh4d8] White threatens Qd8+! and mate.} Rxd3 54. Kxd3 Qd7+ 55. Ke2 Qxc6 56. Qf6 (56. Qxf4 Qd5 $18)) 53... Qxf6 $16 {[%emt 0:00:34]} (53... Rxe5+ 54. Qxe5 Kd7 55. Nxa5 (55. Rxd3+ Kxc6 56. Rd6+ Kb7 57. Qe4+ Ka7 58. Qc6 Qb7 59. Qxc5+ Ka8 60. Qxa5+ Qa7 61. Rd8+ Kb7 62. Rd7+ Kc8 63. Qd8#) (55. Qxc5 Ke8 56. Rxd3 Qc7 57. Rd6 Qc8 58. Qa7 Qa6+ 59. Qxa6 Kf7 60. Qc4 g5 61. Qxe6+ Kf8 62. Rd8#) 55... c4 56. bxc4 (56. Nxc4 Qf8 57. Rxd3+ Ke7 58. Qg5+ Qf6 59. Qc5+ Kf7 60. Rd7+ Kg8 61. Qc8+ Qf8 62. Rg7+ Kh8 63. Qxf8#) 56... Qf5 57. Rxd3+) 54. exf6 {[%emt 0:00:03][%mdl 4096] Endgame. KRN-KRN} Nb4 {[%emt 0:00:07]} 55. Nxa5 {[%emt 0:00:25] Hoping for Rxd5.} Re5+ {[%emt 0:00:33]} (55... Kf7 56. Nc4 Kxf6) 56. Kf2 $18 {[%emt 0:00:38]} Re3 {[%emt 0:00:27]} 57. Nc4 {[%emt 0:00:23]} Rxb3 {[%emt 0:00:14] [#]} 58. f7+ {[%emt 0:01:02]} Kxf7 {[%emt 0:00:10]} 59. Rd7+ {[%emt 0:00:04]} Kf6 {[%emt 0:00:43]} 60. Rxh7 {[%emt 0:00:03] White is more active.} Kg5 {[%emt 0:01:21]} 61. Rh8 {[%emt 0:00:09]} (61. a5 $18 Rc3 62. Ne5 Nd3+ 63. Nxd3 Rxd3 64. a6) 61... Nd5 $16 {[%emt 0:02:02]} 62. a5 {[%emt 0:00:46] aiming for a6.} (62. h7 Kh6 $18) 62... Rb7 {[%emt 0:06:14]} ({Better is} 62... Rc3 $1 $14 63. Nd6 Rc2+ 64. Ke1 Kh5) 63. Ke2 {[%emt 0:00:40]} Rb4 {[%emt 0:05:14]} (63... Ra7 $142 64. Kd3 Ne7) 64. Ne5 {[%emt 0:01:13]} c4 {[%emt 0:01:24][%cal Bc5c4,Bc4c3][%mdl 32]} 65. Nf7+ {[%emt 0:00:23]} Kf6 {[%emt 0:01:07] [#]} 66. Rc8 $1 {[%emt 0:00:43]} Rb2+ {[%emt 0:00:08]} (66... Kxf7 $2 67. h7 Rb2+ 68. Kf1 Rb1+ 69. Kf2 $18) 67. Ke1 $2 {[%emt 0:00:24]} (67. Kd1 $1 $16 Rb1+ (67... Ne3+ $2 68. Kc1 $18) 68. Kc2) 67... Rb1+ {[%emt 0:00:08] [#]} (67... Kxf7 $2 68. h7 Rb1+ 69. Kf2 $18) (67... Nb4 $1 $11) 68. Kd2 $1 {[%emt 0:00:37] And now h7 would win.} (68. Kf2 Nb4 $11 (68... Kxf7 $2 69. h7 $18) (68... Rb2+ $2 69. Kg1 $18)) 68... c3+ {[%emt 0:00:38]} (68... Kxf7 $2 69. h7 Rh1 (69... c3+ $2 70. Kc2 $18) 70. h8=Q (70. h8=B Rg1 $17) 70... Rxh8 71. Rxh8 c3+ 72. Kc2 $18) 69. Kc2 {[%emt 0:00:01]} Rh1 {[%emt 0:00:09] [#]} (69... Rb2+ $16 70. Kc1 Nb4 (70... Kxf7 $2 {perishes.} 71. h7 $18) 71. Rxc3 Rxg2) 70. Nd6 $2 {[%emt 0:00:54]} (70. Rf8 $1 $18) 70... Ke5 {[%emt 0:10:33]} 71. Ne4 {[%emt 0:00:09]} Rxh6 {[%emt 0:07:39]} 72. Nxc3 {[%emt 0:00:03]} g5 {[%emt 0:02:57]} (72... Rh2 73. Nxd5 Kxd5 74. a6 $18) 73. Nxd5 {[%emt 0:00:55]} (73. Kb2 $16) 73... exd5 {[%emt 0:00:04] KR-KR. The position is equal.} 74. Kc3 {[%emt 0:00:02] Black must now prevent Re8+.} Rh1 {[%emt 0:00:30] ( -> ...Rc1+)} 75. Rg8 {[%emt 0:00:24]} Rc1+ {[%emt 0:00:58]} 76. Kd3 {[%emt 0:00:20]} Rd1+ {[%emt 0:00:45]} 77. Kc3 {[%emt 0:00:33]} Rc1+ {[%emt 0:00:05]} 78. Kb2 {[%emt 0:01:35]} Rc5 {[%emt 0:00:20]} 79. a6 {[%emt 0:00:17]} Ra5 {[%emt 0:00:10]} 80. Rxg5+ {[%emt 0:00:04]} Kd4 {[%emt 0:00:12]} 81. Rg6 {[%emt 0:00:06]} Ke3 {[%emt 0:00:29]} 82. Kc2 {[%emt 0:00:34]} Ra2+ {[%emt 0:02:12]} 83. Kb3 {[%emt 0:00:04]} Ra1 {[%emt 0:00:04]} 84. Re6+ {[%emt 0:00:56]} Kf2 {[%emt 0:00:05]} 85. Rg6 {[%emt 0:00:03]} Ke3 {[%emt 0:00:09]} 86. Re6+ {[%emt 0:00:13] Black defended with fortune.   Weighted Error Value: White=0.60/Black=0.29 (precise) .  Loses game:     	---       	Black=1      Missed win:     	White=3     	---        Mistake:       	White=8     	Black=9      Inaccurate:     	White=4     	Black=6      OK:         	White=27    	Black=33     Best:        	White=4     	Black=12     Strong:       	White=3     	Black=2} 1/2-1/2

[Event "Serbian League 2024"]
[Site "Bajina Basta"]
[Date "2024.10.03"]
[Round "7.2"]
[White "Markus, Robert"]
[Black "Puranik, Abhimanyu"]
[Result "1/2-1/2"]
[ECO "E51"]
[WhiteElo "2586"]
[BlackElo "2639"]
[Annotator "TA"]
[PlyCount "44"]
[EventDate "2024.09.26"]
[EventType "team-tourn"]
[EventCountry "SRB"]
[SourceTitle "playchess.com"]
[Source "ChessBase"]
[SourceQuality "1"]
[TimeControl "40/5400+30:1800+30"]

{[%evp 14,44,13,7,12,20,40,5,8,0,0,1,6,7,16,14,18,19,7,6,54,21,43,37,47,0,0,0,0,0,0,0,0]} 1. d4 {[%emt 0:00:08]} Nf6 {[%emt 0:00:14]} 2. Nf3 {[%emt 0:00:09]} d5 {[%emt 0:00:28]} 3. c4 {[%emt 0:00:16]} e6 {[%emt 0:00:13]} 4. Nc3 {[%emt 0:03:48]} Bb4 {[%emt 0:01:48]} 5. e3 {[%emt 0:05:15]} O-O {[%emt 0:00:34]} 6. Bd2 {[%emt 0:00:06]} c5 {[%emt 0:03:34]} 7. a3 {[%emt 0:02:18]} Bxc3 {[%emt 0:00:10]} 8. Bxc3 {[%emt 0:00:10]} cxd4 {[%emt 0:00:16]} 9. Nxd4 {[%emt 0:05:54]} Re8 {[%emt 0:00:48]} 10. Be2 {[%emt 0:04:21]} e5 {[%emt 0:06:44]} 11. Nb3 {[%emt 0:05:22]} Nc6 {[%emt 0:04:30]} 12. cxd5 {[%emt 0:03:53]} Nxd5 {[%emt 0:00:36]} 13. Rc1 {[%emt 0:01:28][%cal Ba1c1,Bc1c3,Bc3c5][%mdl 32]} e4 {[%emt 0:12:04]} 14. O-O {[%emt 0:08:35]} Nxc3 {[%emt 0:10:12]} 15. Rxc3 {[%emt 0:00:09]} Qg5 $1 {[%emt 0:04:23]} 16. Kh1 {[%emt 0:05:16]} Bf5 {[%emt 0:14:44]} (16... Re6 $11 {should be considered.}) 17. Rc5 {[%emt 0:10:05] [#] And now g4 would win.} Rad8 {[%emt 0:01:06]} (17... Qf6 {simplifies} 18. Qc2 Re5 19. Rb5 Rxb5 20. Bxb5 Nd8) 18. Qc2 {[%emt 0:04:43][%cal Og2g4] aiming for g4!} Re5 {[%emt 0:03:24]} 19. Bb5 {[%emt 0:05:57]} (19. Rxe5 $14 {was preferrable.} Nxe5 20. Qc7) 19... Be6 $11 {[%emt 0:04:20] The position is equal.} 20. Bxc6 {[%emt 0:03:12]} Bxb3 $1 {[%emt 0:00:50]} 21. Rxe5 {[%emt 0:00:07]} Qxe5 {[%emt 0:00:04]} 22. Qxb3 {[%emt 0:00:31]} bxc6 {[%emt 0:01:05] Weighted Error Value: White=0.12 (very precise) /Black=0.07 (flawless) .  Mistake:       	White=1     	Black=1      Inaccurate:     	White=2     	---        OK:         	White=6     	Black=3      Best:        	White=1     	Black=2      Strong:       	---       	Black=2} 1/2-1/2

[Event "Serbian League 2024"]
[Site "Bajina Basta"]
[Date "2024.10.03"]
[Round "7.3"]
[White "Gagunashvili, Merab"]
[Black "Perunovic, Milos"]
[Result "1/2-1/2"]
[ECO "E32"]
[WhiteElo "2550"]
[BlackElo "2525"]
[Annotator "TA"]
[PlyCount "79"]
[EventDate "2024.09.26"]
[EventType "team-tourn"]
[EventCountry "SRB"]
[SourceTitle "playchess.com"]
[Source "ChessBase"]
[SourceQuality "1"]
[TimeControl "40/5400+30:1800+30"]

{[%evp 30,79,0,-22,0,0,10,20,44,52,43,47,127,127,147,123,164,179,231,245,323,304,388,89,98,53,43,0,0,0,63,16,152,98,98,98,98,98,93,17,25,0,0,0,0,0,0,0,0,0,0,0]} 1. d4 {[%emt 0:00:07]} Nf6 {[%emt 0:00:27]} 2. c4 {[%emt 0:00:05]} e6 {[%emt 0:00:38]} 3. Nc3 {[%emt 0:00:07]} Bb4 {[%emt 0:00:24]} 4. Qc2 {[%emt 0:00:06]} d6 {[%emt 0:00:31]} 5. a3 {[%emt 0:03:03]} Bxc3+ {[%emt 0:00:53]} 6. Qxc3 {[%emt 0:00:05]} Nbd7 {[%emt 0:00:27]} 7. Nf3 {[%emt 0:02:48]} b6 {[%emt 0:04:22]} 8. e3 {[%emt 0:02:45]} Bb7 {[%emt 0:00:25]} 9. Be2 {[%emt 0:00:08]} O-O {[%emt 0:00:56]} 10. O-O {[%emt 0:00:11]} Ne4 {[%emt 0:09:42]} 11. Qc2 {[%emt 0:00:18]} f5 {[%emt 0:00:06]} 12. b4 {[%emt 0:11:38]} Rf6 {[%emt 0:14:18]} 13. Bb2 {[%emt 0:04:23] E32: Nimzo-Indian: Classical (4 Qc2): 4...0-0.} Rg6 {[%emt 0:03:00]} 14. d5 {[%emt 0:04:56]} c5 {[%emt 0:09:43]} 15. Rad1 {[%emt 0:22:55]} Qe7 {[%emt 0:13:19]} 16. Qb3 {[%emt 0:09:52]} Rf8 {[%emt 0:11:29]} 17. Nd2 $146 {[%emt 0:04:59]} ({Predecessor:} 17. Ne1 Qh4 18. Qa4 Ne5 19. Qxa7 Ba8 20. Qc7 exd5 21. cxd5 Ng5 22. Bxe5 dxe5 23. Nf3 {0-1 Li,S (2557)-Wang,H (2696) CHN-ch Xinghua Jiangsu 2009 (6)}) 17... Nxd2 {[%emt 0:15:02]} 18. Rxd2 {[%emt 0:00:05]} e5 {[%emt 0:01:59]} 19. f4 {[%emt 0:06:39]} Nf6 {[%emt 0:03:27]} 20. Bf3 {[%emt 0:02:15]} exf4 {[%emt 0:05:05]} (20... e4 $14 21. Be2 Bc8) 21. exf4 $16 {[%emt 0:00:59]} Ne4 {[%emt 0:00:02]} 22. Re2 {[%emt 0:01:04]} cxb4 {[%emt 0:02:38]} 23. axb4 {[%emt 0:00:25]} b5 {[%emt 0:00:06]} (23... a6 $142 24. Qd3 b5 25. cxb5 axb5 26. Qxb5 Ba8) 24. cxb5 $18 {[%emt 0:11:21]} Qc7 {[%emt 0:00:32]} 25. Qd3 {[%emt 0:02:42]} Rc8 {[%emt 0:02:46]} 26. Kh1 $2 {[%emt 0:04:56]} (26. Bxe4 $18 {has better winning chances.} fxe4 27. Qxe4 (27. Rxe4 Qc2 $16)) 26... Qc4 $16 {[%emt 0:00:35]} 27. Qxc4 {[%emt 0:01:49]} Rxc4 {[%emt 0:00:02]} 28. g4 {[%emt 0:01:11]} Bxd5 {[%emt 0:00:59]} 29. gxf5 {[%emt 0:00:25]} Rh6 {[%emt 0:00:31]} (29... Rg3 $11 30. hxg3 (30. Rxe4 $2 Rxf3 31. Rxf3 Bxe4 $19) 30... Nxg3+ 31. Kg1 Nxe2+ 32. Bxe2 Rc2) 30. Kg2 {[%emt 0:02:31]} (30. Kg1 $14 {feels stronger.} Rh3 31. Re3 Rxb4 32. Bxe4 Bxe4 33. Rxh3 Rxb2 34. Rc1 Bxf5 35. Re3) 30... Rh4 {[%emt 0:00:19] [#]} (30... Nf6 $1 $11 {keeps the balance.}) 31. Rd1 {[%emt 0:00:33]} ({Better is} 31. Rc1 $1 {[%cal Rc1c4] Black must now prevent Rxc4.} Rxc1 32. Bxc1) 31... Bb7 $16 {[%emt 0:00:05]} 32. Ra1 {[%emt 0:00:26]} Rxf4 {[%emt 0:00:27]} 33. Rxa7 {[%emt 0:00:22]} Bd5 {[%emt 0:00:19] [#]} 34. Rxg7+ {[%emt 0:00:46]} (34. Bxg7 $6 Rxf5 35. Bh6 Rxf3 36. Rg7+ (36. Kxf3 Nc3+ 37. Ke3 Re4+ 38. Kd2 Nxe2 $11) 36... Kh8 37. Kxf3 Nc3+ (37... Rxb4 $2 38. Ke3 $18) 38. Kf2 Nxe2 $11) (34. b6 $1 $16 {[%cal Rb6b7] And now b7 would win.} Rxf3 35. Kxf3 (35. Rxg7+ Kf8 $11) 35... Nc3+ 36. Kf2 Nxe2 37. Rxg7+ Kf8 38. Rc7 (38. Kxe2 Rc2+ 39. Ke3 Rxb2 $17) 38... Rxb4 39. Bg7+ Kg8 40. Kxe2) 34... Kf8 $11 {[%emt 0:00:01]} 35. Rxh7 {[%emt 0:00:30]} (35. b6 $5 Rxf3 36. Kxf3 (36. b7 Rxb4 37. Kxf3 Nc3+ 38. Kf2 Nxe2 $11) 36... Nc3+ (36... Rxb4 $2 37. Ke3 $18) 37. Kf2 Nxe2 (37... Kxg7 38. Rd2 $16) 38. Rc7 (38. Kxe2 Rc2+ 39. Kd3 Rxb2 $17) 38... Rxb4 39. Bg7+ Kg8 40. Kxe2 $11) 35... Rxf3 $1 {[%emt 0:00:44]} 36. Rh8+ {[%emt 0:00:07]} Kf7 {[%emt 0:00:02]} 37. Rh7+ {[%emt 0:00:14]} (37. Kxf3 $5 Nc3+ $8 38. Ke3 (38. Kf2 Nxe2 39. Rh7+ Ke8 $11) 38... Nxe2 (38... Re4+ 39. Kd2 $17) 39. Rh7+ Kf8 40. Kxe2 Rc2+ (40... Rxb4 41. Ba3 $16) 41. Ke3 Rxb2 42. Rd7 Rxb4 43. h4 $15) 37... Kf8 {[%emt 0:00:01]} 38. Rh8+ {[%emt 0:00:21]} Kf7 {[%emt 0:00:00]} 39. Rh7+ {[%emt 0:00:29]} (39. Kxf3 $5 Nc3+ $8 40. Ke3 (40. Kf2 Nxe2 41. Rh7+ Ke8 $11) 40... Nxe2 (40... Re4+ 41. Kd2 $17) 41. Rh7+ Kf8 42. Kxe2 Rc2+ (42... Rxb4 43. Ba3 $14) 43. Ke3 Rxb2 44. Rd7 Rxb4 45. Rxd6 Rxb5 46. h4 $19) 39... Kf8 {[%emt 0:00:01]} 40. Rh8+ {[%emt 0:00:12]} 1/2-1/2

[Event "Serbian League 2024"]
[Site "Bajina Basta"]
[Date "2024.10.03"]
[Round "7.4"]
[White "Ivanisevic, Ivan"]
[Black "Draskovic, Luka"]
[Result "1-0"]
[ECO "D23"]
[WhiteElo "2519"]
[BlackElo "2497"]
[Annotator "ChessBase"]
[PlyCount "129"]
[EventDate "2024.09.26"]
[EventType "team-tourn"]
[EventCountry "SRB"]
[SourceTitle "playchess.com"]
[Source "ChessBase"]
[SourceQuality "1"]
[TimeControl "40/5400+30:1800+30"]

1. d4 {[%emt 0:00:16]} d5 {[%emt 0:00:19]} 2. c4 {[%emt 0:00:09]} e6 {[%emt 0:00:08]} 3. Nc3 {[%emt 0:00:07]} Nf6 {[%emt 0:00:30]} 4. Nf3 {[%emt 0:05:36]} dxc4 {[%emt 0:00:42]} 5. Qa4+ {[%emt 0:08:51]} Nc6 {[%emt 0:09:20]} 6. Bg5 {[%emt 0:02:18]} h6 {[%emt 0:32:01]} 7. Bxf6 {[%emt 0:01:39]} Qxf6 {[%emt 0:00:20]} 8. e3 {[%emt 0:00:59]} Bd7 {[%emt 0:01:44]} 9. Qxc4 {[%emt 0:00:32]} Bd6 {[%emt 0:03:08]} 10. Be2 {[%emt 0:03:14]} O-O {[%emt 0:02:06]} 11. O-O {[%emt 0:02:53]} Qg6 {[%emt 0:05:46]} 12. Rfc1 {[%emt 0:19:20]} a6 {[%emt 0:01:28]} 13. a3 {[%emt 0:13:44]} Kh8 {[%emt 0:05:07]} 14. Qd3 {[%emt 0:02:38]} Qxd3 {[%emt 0:01:19]} 15. Bxd3 {[%emt 0:00:08]} e5 {[%emt 0:04:23]} 16. d5 {[%emt 0:05:55]} Ne7 {[%emt 0:02:03]} 17. Nd2 {[%emt 0:00:06]} f5 {[%emt 0:03:45]} 18. Nc4 {[%emt 0:01:30]} Rfb8 {[%emt 0:02:06]} 19. Nxd6 {[%emt 0:07:52]} cxd6 {[%emt 0:00:08]} 20. f4 {[%emt 0:00:03]} e4 {[%emt 0:02:00]} 21. Be2 {[%emt 0:03:25]} Rc8 {[%emt 0:00:06]} 22. Kf2 {[%emt 0:00:50]} Rc5 {[%emt 0:02:15]} 23. Rd1 {[%emt 0:01:23]} Rf8 {[%emt 0:02:26]} 24. Rd4 {[%emt 0:02:45]} g5 {[%emt 0:00:46]} 25. Rad1 {[%emt 0:00:50]} g4 {[%emt 0:00:46]} 26. h3 {[%emt 0:05:08]} h5 {[%emt 0:00:15]} 27. Rh1 {[%emt 0:00:35]} Kg7 {[%emt 0:00:07]} 28. hxg4 {[%emt 0:00:33]} hxg4 {[%emt 0:00:05]} 29. a4 {[%emt 0:02:41]} Rfc8 {[%emt 0:04:26]} 30. Ra1 {[%emt 0:01:35]} Be8 {[%emt 0:00:42]} 31. Rad1 {[%emt 0:02:08]} Bf7 {[%emt 0:00:22]} 32. Kg3 {[%emt 0:00:12]} R8c7 {[%emt 0:02:21]} 33. R1d2 {[%emt 0:00:21]} Rc8 {[%emt 0:02:43]} 34. Bd1 {[%emt 0:00:36]} R8c7 {[%emt 0:01:55]} 35. Kf2 {[%emt 0:00:21]} Rc4 {[%emt 0:03:20]} 36. Bb3 {[%emt 0:00:48]} Rxd4 {[%emt 0:00:05]} 37. Rxd4 {[%emt 0:00:06]} Ng8 {[%emt 0:01:00]} 38. Rb4 {[%emt 0:02:07]} Kf8 {[%emt 0:01:14]} 39. Ne2 {[%emt 0:01:33]} Ne7 {[%emt 0:02:37]} 40. Nc3 {[%emt 0:02:04]} Kg7 {[%emt 0:01:25]} 41. a5 {[%emt 0:32:09]} Kf6 {[%emt 0:05:21]} 42. Kg3 {[%emt 0:00:00]} Bg8 {[%emt 0:00:54]} 43. Rc4 {[%emt 0:00:00]} Rxc4 {[%emt 0:05:12]} 44. Bxc4 {[%emt 0:00:00]} Bf7 {[%emt 0:00:29]} 45. b4 {[%emt 0:00:00]} Be8 {[%emt 0:03:32]} 46. b5 {[%emt 0:00:00]} axb5 {[%emt 0:00:04]} 47. Bxb5 {[%emt 0:00:00]} Bf7 {[%emt 0:00:41]} 48. Bc4 {[%emt 0:00:00]} Be8 {[%emt 0:00:03]} 49. Kf2 {[%emt 0:00:00]} Ng6 {[%emt 0:03:26]} 50. Bb5 {[%emt 0:00:00]} Bxb5 {[%emt 0:01:05]} 51. Nxb5 {[%emt 0:00:00]} Ke7 {[%emt 0:00:04]} 52. Nd4 {[%emt 0:00:00]} Kf6 {[%emt 0:00:12]} 53. Nc6 {[%emt 0:00:00]} Ne7 {[%emt 0:04:32]} 54. Nd8 {[%emt 0:00:00]} Nxd5 {[%emt 0:00:28]} 55. Nxb7 {[%emt 0:00:00]} Ke7 {[%emt 0:00:14]} 56. a6 {[%emt 0:00:00]} Nc7 {[%emt 0:05:17]} 57. a7 {[%emt 0:00:00]} Ke6 {[%emt 0:00:18]} 58. Na5 {[%emt 0:00:00]} Kd5 {[%emt 0:00:06]} 59. Nb3 {[%emt 0:00:00]} Kc6 {[%emt 0:00:16]} 60. Nd4+ {[%emt 0:00:00]} Kb7 {[%emt 0:00:18]} 61. Nxf5 {[%emt 0:00:00]} Ne8 {[%emt 0:00:17]} 62. Kg3 {[%emt 0:00:00]} Kxa7 {[%emt 0:00:07]} 63. Kxg4 {[%emt 0:00:00]} Kb6 {[%emt 0:00:14]} 64. Kg5 {[%emt 0:00:00]} Kc5 {[%emt 0:00:13]} 65. g4 {[%emt 0:00:00]} 1-0